fUST/lending_fUST_20240526
["ID","MTS","AMOUNT","RATE_DAILY","PERIOD"]
[327927745,1716652892580,500.0,0.000275,30]
[327927787,1716653432582,-999.63689439,8.898e-05,2]
[327927789,1716653432596,-800.36310561,8.898e-05,2]
[327927791,1716653432607,-175.75673806,8.898e-05,2]
[327927794,1716653432620,-711.49700755,8.899e-05,2]
[327927796,1716653432630,-892.60504862,9.232e-05,2]
[327927798,1716653432642,-6416.74241756,9.232e-05,2]
[327927827,1716653438485,-318.47,9.232e-05,2]
[327928008,1716653443490,-34794.69196963,9.232e-05,2]
[327928016,1716653443687,-1731.7210184,9.232e-05,2]
[327928089,1716653446931,-0.03133512,9.232e-05,2]
[327928097,1716654542498,250.0,5.24e-05,2]
[327928098,1716654566103,-1497.86344925,6.228e-05,2]
[327928099,1716654566126,-2032.31549555,6.228e-05,2]
[327928100,1716654566145,-2599.89847911,6.229e-05,2]
[327928101,1716654566167,-720.62329532,6.229e-05,2]
[327928102,1716654566188,-1200.0,6.23e-05,2]
[327928103,1716654566211,-488.24995546,6.231e-05,2]
[327928104,1716654566230,-175.75673806,6.231e-05,2]
[327928105,1716654566250,-231.02960299,6.232e-05,2]
[327928106,1716654566269,-2390.73624394,6.251e-05,2]
[327928123,1716654632706,-239.00629442,6.228e-05,2]
[327928125,1716654632716,-1127.91761656,6.251e-05,2]
[327928127,1716654632725,-1709.8607377,6.661e-05,2]
[327928129,1716654632734,-1155.46356718,7.659e-05,2]
[327928131,1716654632743,-225.95852501,7.659e-05,2]
[327928133,1716654632755,-493.53717807,7.659e-05,2]
[327928135,1716654632764,-2031.48450445,7.659e-05,2]
[327928137,1716654632773,-282.89831748,7.659e-05,2]
[327928139,1716654632785,-338.12440673,7.659e-05,2]
[327928142,1716654632804,-378.97727579,7.659e-05,2]
[327928144,1716654632813,-176.72814215,7.659e-05,2]
[327928146,1716654632822,-315.6011672,7.659e-05,2]
[327928148,1716654632831,-231.10907766,7.659e-05,2]
[327928150,1716654632840,-2599.89847911,7.659e-05,2]
[327928152,1716654632850,-258.28625552,7.659e-05,2]
[327928154,1716654632859,-156.55408668,7.66e-05,2]
[327928156,1716654632868,-207.72365159,7.66e-05,2]
[327928158,1716654632878,-154.8915759,7.661e-05,2]
[327928160,1716654632887,-56916.12719853,7.661e-05,2]
[327928189,1716654637631,-2532.45542814,7.661e-05,2]
[327928190,1716654637641,-1035.44341026,7.662e-05,2]
[327928192,1716654637653,-1100.12134184,7.662e-05,2]
[327928194,1716654637664,-19894.77353554,7.662e-05,2]
[327928199,1716654637706,-2869.66171236,7.662e-05,2]
[327928201,1716654637715,-189.76101519,9.13e-05,2]
[327928202,1716654637725,-277.02435791,9.225e-05,2]
[327928205,1716654637738,-992.24267659,9.225e-05,2]
[327928206,1716654637749,-733.07218339,9.225e-05,2]
[327928208,1716654637761,-1649.16941498,9.225e-05,2]
[327928210,1716654637776,-1884.23572531,9.225e-05,2]
[327928212,1716654637785,-690.60091878,9.23e-05,2]
[327928214,1716654637795,-550.9904196,9.23e-05,2]
[327928216,1716654637804,-1339.904712,9.23e-05,2]
[327928218,1716654637814,-155.13331037,9.231e-05,2]
[327928220,1716654637823,-1279.13491398,9.231e-05,2]
[327928222,1716654637835,-4049.29127597,9.231e-05,2]
[327928224,1716654637844,-350.70411523,9.231e-05,2]
[327928226,1716654637856,-104.8600814,9.231e-05,2]
[327928228,1716654637865,-316.32323638,9.231e-05,2]
[327928230,1716654637875,-330.82948222,9.231e-05,2]
[327928249,1716654640718,-1019.69782546,9.231e-05,2]
[327928251,1716654640727,-155.13331037,9.231e-05,2]
[327928253,1716654640737,-772.21556016,9.231e-05,2]
[327928254,1716654640746,-155.04341216,9.231e-05,2]
[327928256,1716654640756,-281.31656163,9.231e-05,2]
[327928259,1716654640765,-7896.38308987,9.231e-05,2]
[327928260,1716654640775,-154.87609912,9.232e-05,2]
[327928262,1716654640785,-3633.92034182,9.232e-05,2]
[327928265,1716654640796,-3373.78266972,9.232e-05,2]
[327928267,1716654640805,-10042.45045654,9.232e-05,2]
[327928269,1716654640815,-1898.21836185,9.232e-05,2]
[327928271,1716654640825,-1137.49756825,0.0001,2]
[327928273,1716654640835,-15000.0,0.0001,2]
[327928275,1716654640844,-1137.20961754,0.0001,2]
[327928277,1716654640853,-4227.33365889,0.00010777,2]
[327928279,1716654640863,-388.1831133,0.00010959,2]
[327928281,1716654640872,-407.9,0.00010959,2]
[327928283,1716654640882,-339.92,0.00010959,2]
[327928285,1716654640891,-283.27,0.00010959,2]
[327928287,1716654640901,-236.06,0.00010959,2]
[327928289,1716654640909,-196.71,0.00010959,2]
[327928291,1716654640920,-215.951299,0.000119,2]
[327928292,1716654640929,-1137.20961752,0.000119,2]
[327928294,1716654640938,-497.0,0.00011917,2]
[327928297,1716654640948,-345.4664948,0.00012778,2]
[327928298,1716654640958,-151.0,0.00013699,2]
[327928300,1716654640967,-151.0,0.00013699,2]
[327928303,1716654640977,-151.0,0.00013699,2]
[327928304,1716654640986,-4010.1561376,0.00013699,2]
[327928306,1716654640996,-151.0,0.00013699,2]
[327928308,1716654641005,-151.0,0.00013699,2]
[327928310,1716654641014,-151.0,0.00013699,2]
[327928312,1716654641024,-151.0,0.00013699,2]
[327928314,1716654641034,-3000.0,0.00013699,2]
[327928317,1716654641043,-151.0,0.00013699,2]
[327928319,1716654641052,-151.0,0.00013699,2]
[327928320,1716654641062,-1236.579012,0.00013699,2]
[327928322,1716654641073,-151.0,0.00013699,2]
[327928325,1716654641082,-151.0,0.00013699,2]
[327928327,1716654641092,-151.0,0.00013699,2]
[327928329,1716654641102,-151.0,0.00013699,2]
[327928331,1716654641111,-151.0,0.00013699,2]
[327928333,1716654641120,-151.0,0.00013699,2]
[327928335,1716654641129,-151.0,0.00013699,2]
[327928337,1716654641138,-151.0,0.00013699,2]
[327928339,1716654641148,-151.0,0.00013699,2]
[327928341,1716654641157,-151.0,0.00013699,2]
[327928343,1716654641167,-151.0,0.00013699,2]
[327928345,1716654641175,-263.102017,0.00013699,2]
[327928347,1716654641184,-151.0,0.00013699,2]
[327928349,1716654641194,-151.0,0.00013699,2]
[327928351,1716654641203,-151.0,0.00013699,2]
[327928353,1716654641212,-387.317308,0.00013699,2]
[327928355,1716654641222,-387.317308,0.00013699,2]
[327928356,1716654641231,-280.544459,0.00013699,2]
[327928359,1716654641240,-280.544459,0.00013699,2]
[327928361,1716654641250,-151.0,0.00013699,2]
[327928362,1716654641259,-158.800439,0.00013699,2]
[327928365,1716654641269,-158.800439,0.00013699,2]
[327928366,1716654641278,-151.0,0.00013699,2]
[327928369,1716654641288,-151.0,0.00013699,2]
[327928370,1716654641297,-561.709387,0.00013699,2]
[327928373,1716654641306,-276.718079,0.00013699,2]
[327928375,1716654641316,-561.709387,0.00013699,2]
[327928377,1716654641325,-151.0,0.00013699,2]
[327928378,1716654641335,-276.718079,0.00013699,2]
[327928380,1716654641344,-299.458226,0.00013699,2]
[327928383,1716654641353,-299.458226,0.00013699,2]
[327928385,1716654641363,-151.0,0.00013699,2]
[327928386,1716654641372,-152.130202,0.00013699,2]
[327928389,1716654641381,-283.86669786,0.000137,2]
[327928391,1716654641392,-1333.48140252,0.00013759,2]
[327928393,1716654641401,-151.0,0.00013759,2]
[327928395,1716654641411,-151.0,0.00013759,2]
[327928397,1716654641420,-178.251288,0.00013759,2]
[327928399,1716654641430,-178.251288,0.00013759,2]
[327928401,1716654641439,-500.0,0.00013898,2]
[327928417,1716654641448,-292.7,0.00013898,2]
[327928419,1716654641594,-151.0,0.00013898,2]
[327928420,1716654641603,-151.0,0.00013898,2]
[327928421,1716654641613,-304.44090203,0.00013899,2]
[327928422,1716654641622,-1137.20961752,0.000139,2]
[327928423,1716654641632,-921.9413628,0.00014,2]
[327928425,1716654641641,-153.0,0.0001411,2]
[327928427,1716654641650,-153.0,0.0001411,2]
[327928429,1716654641660,-153.0,0.0001411,2]
[327928431,1716654641671,-153.0,0.0001411,2]
[327928433,1716654641679,-153.0,0.0001411,2]
[327928435,1716654641689,-305.7466872,0.0001411,2]
[327928437,1716654641703,-387.317308,0.0001411,2]
[327928439,1716654641715,-387.317308,0.0001411,2]
[327928441,1716654641724,-280.544459,0.0001411,2]
[327928443,1716654641733,-280.544459,0.0001411,2]
[327928445,1716654641744,-151.0,0.0001411,2]
[327928447,1716654641753,-158.800439,0.0001411,2]
[327928448,1716654641762,-158.800439,0.0001411,2]
[327928449,1716654641771,-151.0,0.0001411,2]
[327928451,1716654641782,-209.328963,0.0001411,2]
[327928453,1716654641791,-561.709387,0.0001411,2]
[327928454,1716654641800,-276.718079,0.0001411,2]
[327928455,1716654641810,-561.709387,0.0001411,2]
[327928456,1716654641819,-151.0,0.0001411,2]
[327928457,1716654641828,-276.718079,0.0001411,2]
[327928458,1716654641837,-299.458226,0.0001411,2]
[327928459,1716654641847,-299.458226,0.0001411,2]
[327928460,1716654641857,-160.0,0.00014668,2]
[327928461,1716654641866,-432.9499144,0.0001486,2]
[327928462,1716654641876,-274.9744639,0.0001486,2]
[327928463,1716654641885,-153.0,0.0001486,2]
[327928464,1716654641894,-5083.46073823,0.00014897,2]
[327928465,1716654641903,-151.0,0.00014897,2]
[327928466,1716654641913,-151.0,0.00014897,2]
[327928467,1716654641924,-151.0,0.00014897,2]
[327928468,1716654641933,-151.0,0.00014897,2]
[327928469,1716654641942,-151.0,0.00014897,2]
[327928470,1716654641951,-151.0,0.00014897,2]
[327928471,1716654641960,-151.0,0.00014897,2]
[327928472,1716654641969,-155.269053,0.00014897,2]
[327928473,1716654641979,-261.96069104,0.00014898,2]
[327928474,1716654641988,-709.0812897,0.00014898,2]
[327928475,1716654641997,-392.96788427,0.00014898,2]
[327928476,1716654642007,-151.0,0.00014898,2]
[327928477,1716654642017,-151.0,0.00014898,2]
[327928478,1716654642026,-151.0,0.00014898,2]
[327928479,1716654642035,-151.0,0.00014898,2]
[327928480,1716654642045,-151.0,0.00014898,2]
[327928481,1716654642055,-151.0,0.00014898,2]
[327928482,1716654642064,-2000.0,0.00014899,2]
[327928483,1716654642074,-155.18307391,0.00014899,2]
[327928484,1716654642083,-151.0,0.000149,2]
[327928485,1716654642092,-153.176804,0.000149,2]
[327928486,1716654642102,-151.0,0.000149,2]
[327928487,1716654642112,-151.0,0.000149,2]
[327928488,1716654642121,-178.251288,0.000149,2]
[327928489,1716654642130,-178.251288,0.000149,2]
[327928490,1716654642140,-151.547111,0.000149,2]
[327928491,1716654642149,-158.800439,0.000149,2]
[327928492,1716654642158,-158.800439,0.000149,2]
[327928493,1716654642168,-151.0,0.000149,2]
[327928494,1716654642178,-561.709387,0.000149,2]
[327928495,1716654642187,-276.718079,0.000149,2]
[327928496,1716654642196,-561.709387,0.000149,2]
[327928497,1716654642205,-272.88836,0.000149,2]
[327928498,1716654642214,-276.718079,0.000149,2]
[327928499,1716654642224,-299.458226,0.000149,2]
[327928500,1716654642233,-299.458226,0.000149,2]
[327928501,1716654642242,-497.0,0.00014917,2]
[327928502,1716654642252,-298.24829515,0.00014998,2]
[327928503,1716654642261,-1407.24401404,0.00014998,2]
[327928504,1716654642270,-155.04341216,0.00014998,2]
[327928505,1716654642280,-155.63846752,0.00014998,2]
[327928506,1716654642290,-189.09040671,0.00014998,2]
[327928507,1716654642300,-395.41357359,0.00014998,2]
[327928508,1716654642309,-961.40990202,0.00014998,2]
[327928509,1716654642323,-7905.26518052,0.00014998,2]
[327928511,1716654642332,-151.0,0.00014998,2]
[327928512,1716654642341,-151.0,0.00014998,2]
[327928513,1716654642351,-151.0,0.00014998,2]
[327928514,1716654642361,-10.82104621,0.00014998,2]
[327928525,1716654643033,-140.17895379,0.00014998,2]
[327928527,1716654643042,-151.0,0.00014998,2]
[327928529,1716654643052,-170.4870134,0.00014998,2]
[327928541,1716654646013,-163.93,0.00010959,2]
[327928542,1716654646022,-150.0,0.00011917,2]
[327928543,1716654646032,-150.0,0.00011917,2]
[327928544,1716654646041,-7.7642746,0.00014998,2]
[327928545,1716654646050,-178.251288,0.00014998,2]
[327928546,1716654646060,-151.0,0.00014998,2]
[327928547,1716654646069,-151.0,0.00014998,2]
[327928548,1716654646079,-151.0,0.00014998,2]
[327928549,1716654646088,-151.0,0.00014998,2]
[327928550,1716654646097,-151.0,0.00014998,2]
[327928551,1716654646106,-151.0,0.00014998,2]
[327928552,1716654646115,-151.0,0.00014998,2]
[327928553,1716654646124,-233.853539,0.00014998,2]
[327928554,1716654646133,-387.317308,0.00014998,2]
[327928555,1716654646143,-387.317308,0.00014998,2]
[327928556,1716654646152,-280.544459,0.00014998,2]
[327928557,1716654646161,-280.544459,0.00014998,2]
[327928558,1716654646170,-294.87976936,0.00014999,2]
[327928559,1716654646179,-3525.45,0.00014999,2]
[327928560,1716654646191,-158.800439,0.00014999,2]
[327928561,1716654646201,-158.800439,0.00014999,2]
[327928562,1716654646209,-256.403616,0.00014999,2]
[327928563,1716654646219,-561.709387,0.00014999,2]
[327928564,1716654646227,-276.718079,0.00014999,2]
[327928565,1716654646236,-561.709387,0.00014999,2]
[327928566,1716654646245,-276.718079,0.00014999,2]
[327928567,1716654646254,-299.458226,0.00014999,2]
[327928568,1716654646264,-299.458226,0.00014999,2]
[327928569,1716654646273,-943.54638398,0.00015,2]
[327928570,1716654646282,-1785.83981532,0.00015,2]
[327928571,1716654646292,-154.82968734,0.00015,2]
[327928572,1716654646302,-154.82968734,0.00015,2]
[327928573,1716654646311,-80000.0,0.00015,2]
[327928574,1716654646320,-151.0,0.00015,2]
[327928575,1716654646329,-151.0,0.00015,2]
[327928576,1716654646338,-151.0,0.00015,2]
[327928577,1716654646347,-151.0,0.00015,2]
[327928578,1716654646357,-151.0,0.00015,2]
[327928579,1716654646366,-178.251288,0.00015,2]
[327928580,1716654646375,-178.251288,0.00015,2]
[327928581,1716654646384,-151.0,0.00015,2]
[327928582,1716654646393,-151.0,0.00015,2]
[327928583,1716654646402,-151.0,0.00015,2]
[327928584,1716654646411,-151.0,0.00015,2]
[327928585,1716654646422,-151.0,0.00015,2]
[327928586,1716654646431,-151.0,0.00015,2]
[327928587,1716654646441,-2107.63182672,0.00015,2]
[327928588,1716654646450,-387.317308,0.00015,2]
[327928589,1716654646459,-387.317308,0.00015,2]
[327928590,1716654646468,-387.317308,0.00015,2]
[327928591,1716654646478,-387.317308,0.00015,2]
[327928592,1716654646488,-280.544459,0.00015,2]
[327928593,1716654646497,-280.544459,0.00015,2]
[327928594,1716654646506,-280.544459,0.00015,2]
[327928595,1716654646516,-280.544459,0.00015,2]
[327928596,1716654646525,-158.800439,0.00015,2]
[327928597,1716654646535,-158.800439,0.00015,2]
[327928598,1716654646544,-561.709387,0.00015,2]
[327928599,1716654646555,-276.718079,0.00015,2]
[327928600,1716654646565,-561.709387,0.00015,2]
[327928601,1716654646574,-276.718079,0.00015,2]
[327928602,1716654646584,-299.458226,0.00015,2]
[327928603,1716654646593,-299.458226,0.00015,2]
[327928604,1716654646602,-378.98401605,0.00015216,2]
[327928605,1716654646611,-151.0,0.00015407,3]
[327928606,1716654646622,-151.0,0.00015407,2]
[327928607,1716654646631,-151.0,0.00015407,3]
[327928608,1716654646640,-151.0,0.00015407,2]
[327928609,1716654646650,-190.10124897,0.000156,2]
[327928610,1716654646660,-1137.20961752,0.000159,2]
[327928611,1716654646669,-151.0,0.00016438,2]
[327928612,1716654646679,-151.0,0.00016438,2]
[327928613,1716654646689,-151.0,0.00016438,2]
[327928614,1716654646704,-266.836698,0.00016438,2]
[327928615,1716654646714,-274.71288917,0.000165,2]
[327928616,1716654646724,-291.6770573,0.00016932,2]
[327928617,1716654646733,-291.6770573,0.00016932,2]
[327928618,1716654646743,-291.6770573,0.00016932,2]
[327928619,1716654646753,-291.6770573,0.00016932,2]
[327928620,1716654646762,-291.6770573,0.00016932,2]
[327928621,1716654646771,-293.3457882,0.00016932,2]
[327928622,1716654646780,-151.0,0.00017061,2]
[327928623,1716654646790,-151.0,0.00017061,2]
[327928624,1716654646799,-1970.40659625,0.000176,2]
[327928625,1716654646808,-158.800439,0.000176,2]
[327928626,1716654646817,-158.800439,0.000176,2]
[327928627,1716654646826,-561.709387,0.000176,2]
[327928628,1716654646835,-276.718079,0.000176,2]
[327928629,1716654646845,-561.709387,0.000176,2]
[327928630,1716654646854,-276.718079,0.000176,2]
[327928631,1716654646864,-299.458226,0.000176,2]
[327928632,1716654646873,-299.458226,0.000176,2]
[327928633,1716654646882,-389.46208187,0.00017628,2]
[327928634,1716654646891,-151.0,0.00017628,2]
[327928635,1716654646900,-151.0,0.00017628,2]
[327928636,1716654646910,-11374.43669246,0.00017678,2]
[327928637,1716654646919,-151.0,0.00017678,2]
[327928638,1716654646929,-151.0,0.00017678,2]
[327928639,1716654646938,-178.251288,0.00017678,2]
[327928640,1716654646947,-178.251288,0.00017678,2]
[327928641,1716654646956,-151.0,0.00017678,2]
[327928642,1716654646966,-151.0,0.00017678,2]
[327928643,1716654646975,-151.0,0.00017678,2]
[327928644,1716654646984,-151.0,0.00017678,2]
[327928645,1716654646994,-151.0,0.00017678,2]
[327928646,1716654647006,-151.0,0.00017678,2]
[327928647,1716654647015,-387.317308,0.00017678,2]
[327928648,1716654647024,-387.317308,0.00017678,2]
[327928649,1716654647034,-280.544459,0.00017678,2]
[327928650,1716654647043,-280.544459,0.00017678,2]
[327928651,1716654647052,-515.7257258,0.00017753,2]
[327928652,1716654647062,-88888.0,0.000178,2]
[327928653,1716654647071,-151.0,0.000178,2]
[327928654,1716654647080,-178.251288,0.000178,2]
[327928655,1716654647090,-178.251288,0.000178,2]
[327928656,1716654647099,-151.0,0.000178,2]
[327928657,1716654647108,-151.0,0.000178,2]
[327928658,1716654647117,-151.0,0.000178,2]
[327928659,1716654647126,-151.0,0.000178,2]
[327928660,1716654647135,-151.0,0.000178,2]
[327928661,1716654647144,-151.0,0.000178,2]
[327928662,1716654647153,-387.317308,0.000178,2]
[327928663,1716654647162,-387.317308,0.000178,2]
[327928664,1716654647172,-280.544459,0.000178,2]
[327928665,1716654647181,-280.544459,0.000178,2]
[327928666,1716654647190,-158.800439,0.000178,2]
[327928667,1716654647199,-158.800439,0.000178,2]
[327928668,1716654647209,-561.709387,0.000178,2]
[327928669,1716654647218,-276.718079,0.000178,2]
[327928670,1716654647228,-561.709387,0.000178,2]
[327928671,1716654647238,-276.718079,0.000178,2]
[327928672,1716654647247,-299.458226,0.000178,2]
[327928673,1716654647257,-299.458226,0.000178,2]
[327928674,1716654647266,-1981.48839217,0.00017898,2]
[327928675,1716654647275,-151.0,0.00017898,2]
[327928676,1716654647284,-151.0,0.00017898,2]
[327928677,1716654647293,-309.59749848,0.00017899,2]
[327928678,1716654647303,-151.0,0.000179,2]
[327928679,1716654647312,-151.0,0.000179,2]
[327928680,1716654647321,-151.0,0.000179,2]
[327928681,1716654647330,-1137.20961752,0.000179,2]
[327928682,1716654647339,-496.0,0.00017917,2]
[327928683,1716654647349,-172690.37750839,0.00018,2]
[327928684,1716654647359,-896.44226485,0.00018,2]
[327928685,1716654647368,-6319.03536585,0.00018,7]
[327928686,1716654647378,-43884.27103124,0.00018,2]
[327928687,1716654647387,-151.0,0.00018,2]
[327928688,1716654647396,-243.107888,0.00018,2]
[327928689,1716654647405,-151.0,0.00018,2]
[327928690,1716654647414,-151.0,0.00018,2]
[327928691,1716654647423,-167.717822,0.00018,2]
[327928692,1716654647432,-178.251288,0.00018,2]
[327928693,1716654647441,-178.251288,0.00018,2]
[327928694,1716654647450,-178.251288,0.00018,2]
[327928695,1716654647460,-178.251288,0.00018,2]
[327928696,1716654647468,-151.0,0.00018,2]
[327928697,1716654647478,-151.0,0.00018,2]
[327928698,1716654647487,-151.0,0.00018,2]
[327928699,1716654647496,-211.826014,0.00018,2]
[327928700,1716654647506,-151.0,0.00018,2]
[327928701,1716654647515,-151.0,0.00018,2]
[327928702,1716654647525,-166.216976,0.00018,2]
[327928703,1716654647534,-387.317308,0.00018,2]
[327928704,1716654647543,-387.317308,0.00018,2]
[327928705,1716654647680,-387.317308,0.00018,2]
[327928706,1716654647690,-387.317308,0.00018,2]
[327928707,1716654647703,-280.544459,0.00018,2]
[327928708,1716654647713,-280.544459,0.00018,2]
[327928709,1716654647722,-280.544459,0.00018,2]
[327928710,1716654647731,-280.544459,0.00018,2]
[327928711,1716654647741,-158.800439,0.00018,2]
[327928712,1716654647750,-158.800439,0.00018,2]
[327928713,1716654647759,-158.800439,0.00018,2]
[327928714,1716654647769,-158.800439,0.00018,2]
[327928715,1716654647782,-561.709387,0.00018,2]
[327928716,1716654647791,-561.709387,0.00018,2]
[327928717,1716654647800,-276.718079,0.00018,2]
[327928718,1716654647811,-276.718079,0.00018,2]
[327928719,1716654647820,-561.709387,0.00018,2]
[327928720,1716654647829,-561.709387,0.00018,2]
[327928721,1716654647839,-276.718079,0.00018,2]
[327928722,1716654647849,-276.718079,0.00018,2]
[327928723,1716654647859,-299.458226,0.00018,2]
[327928724,1716654647869,-299.458226,0.00018,2]
[327928725,1716654647878,-299.458226,0.00018,2]
[327928726,1716654647888,-299.458226,0.00018,2]
[327928727,1716654647897,-151.0,0.00018715,2]
[327928728,1716654647907,-151.0,0.00018715,2]
[327928729,1716654647916,-6813.37259016,0.000189,2]
[327928730,1716654647927,-155.46671121,0.00019,2]
[327928731,1716654647937,-2167.0,0.00019,2]
[327928732,1716654647946,-162.67514031,0.00019,2]
[327928733,1716654647956,-1000.0,0.00019,2]
[327928734,1716654647965,-178.251288,0.00019,2]
[327928735,1716654647974,-178.251288,0.00019,2]
[327928736,1716654647984,-151.0,0.00019,2]
[327928737,1716654647993,-151.0,0.00019,2]
[327928738,1716654648003,-387.317308,0.00019,2]
[327928739,1716654648012,-387.31730411,0.00019,2]
[327928740,1716654648022,-280.544459,0.00019,2]
[327928741,1716654648032,-280.54445294,0.00019,2]
[327928742,1716654648041,-158.800439,0.00019,2]
[327928743,1716654648051,-158.800448,0.00019,2]
[327928744,1716654648060,-561.709387,0.00019,2]
[327928745,1716654648069,-276.718079,0.00019,2]
[327928746,1716654648079,-561.709389,0.00019,2]
[327928747,1716654648088,-276.718078,0.00019,2]
[327928748,1716654648097,-299.458226,0.00019,2]
[327928749,1716654648106,-299.458226,0.00019,2]
[327928750,1716654648115,-154.95346446,0.00019176,2]
[327928751,1716654648124,-2275.71358268,0.00019176,2]
[327928752,1716654648134,-155.35210504,0.00019177,2]
[327928753,1716654648143,-500.0,0.00019178,2]
[327928754,1716654648152,-500.0,0.00019178,2]
[327928755,1716654648161,-2719.21985546,0.00019178,2]
[327928756,1716654648171,-500.0,0.00019178,2]
[327928757,1716654648180,-500.0,0.00019178,2]
[327928758,1716654648190,-312.13232888,0.00019178,2]
[327928759,1716654648200,-500.0,0.00019178,2]
[327928760,1716654648209,-424.41333711,0.00019178,2]
[327928761,1716654648218,-2719.21985546,0.00019178,2]
[327928762,1716654648227,-500.0,0.00019178,2]
[327928763,1716654648237,-500.0,0.00019178,2]
[327928764,1716654648246,-500.0,0.00019178,2]
[327928765,1716654648255,-500.0,0.00019178,2]
[327928766,1716654648265,-500.0,0.00019178,2]
[327928767,1716654648274,-500.0,0.00019178,2]
[327928768,1716654648283,-500.0,0.00019178,2]
[327928769,1716654648293,-2719.21985546,0.00019178,2]
[327928770,1716654648303,-500.0,0.00019178,2]
[327928771,1716654648312,-500.0,0.00019178,2]
[327928772,1716654648322,-500.0,0.00019178,2]
[327928773,1716654648331,-500.0,0.00019178,2]
[327928774,1716654648341,-500.0,0.00019178,2]
[327928775,1716654648350,-500.0,0.00019178,2]
[327928776,1716654648360,-2719.21985546,0.00019178,2]
[327928777,1716654648369,-460.28104647,0.00019178,2]
[327928795,1716655629175,-521.0,8.879e-05,2]
[327928796,1716655629195,-115.23739,8.88e-05,2]
[327928843,1716655837884,-2599.89847911,8.88e-05,2]
[327928844,1716655837895,-3633.92034182,8.88e-05,2]
[327928845,1716655837905,-239.00629442,8.899e-05,2]
[327928846,1716655837914,-250.81286752,8.9e-05,2]
[327928847,1716655837924,-156.62326295,9e-05,2]
[327928848,1716655837933,-521.0,9.999e-05,2]
[327928849,1716655837943,-1137.49756825,0.0001,2]
[327928850,1716655837952,-819.66,0.00010959,2]
[327928851,1716655837962,-24900.0,0.00011026,2]
[327928852,1716655837972,-176.871,0.00012045,2]
[327928853,1716655837981,-618.289506,0.00013699,2]
[327928854,1716655837991,-2077.6789547,0.00013699,2]
[327928855,1716655838001,-283.86669786,0.00014986,2]
[327928856,1716655838012,-921.9413628,0.00014987,2]
[327928857,1716655838022,-19816.36942006,0.00014988,2]
[327928858,1716655838032,-2403.8060941,0.00015,2]
[327928859,1716655838041,-154.87609912,0.00015,2]
[327928860,1716655838051,-943.54638398,0.00015,2]
[327928861,1716655838061,-80000.0,0.00015,2]
[327928862,1716655838071,-154.87609912,0.00015,2]
[327928863,1716655838079,-1098.07618172,0.00015,2]
[327928864,1716655838091,-151.0,0.00015489,3]
[327928865,1716655838102,-151.0,0.00015489,2]
[327928866,1716655838112,-190.10124897,0.000156,2]
[327928867,1716655838121,-274.71288917,0.000165,2]
[327928868,1716655838131,-11861.44299262,0.00017799,2]
[327928869,1716655838143,-771.65232468,0.00017799,2]
[327928870,1716655838155,-349.285,0.00017799,2]
[327928881,1716655842754,-14987.94407752,0.00017799,2]
[327928882,1716655842764,-10461.69717638,0.00017898,2]
[327928883,1716655842773,-2000.0,0.000179,2]
[327928884,1716655842782,-10156.22243898,0.00017999,7]
[327928886,1716656002246,2488.16819072,0.000183,10]
[327928942,1716657032332,-521.0,9.974e-05,2]
[327928943,1716657032341,-2681.27163775,9.975e-05,2]
[327928944,1716657032351,-299.32836225,0.0001,2]
[327928952,1716657038171,-838.169206,0.0001,2]
[327928953,1716657038180,-482.99,0.00010959,2]